[Event "Early-Titled-Tuesday-Blitz-March-19-2024"]
[Site "Chess.com"]
[Date "2024.03.19"]
[Round "8"]
[White "Juicy_Fork"]
[Black "talaicito"]
[Result "0-1"]
[WhiteElo "2523"]
[BlackElo "2314"]
[TimeControl "180+1"]
[EndTime "9:26:57 PDT"]
[Termination "talaicito won by checkmate"]

1. e4 {[%clk 0:03:00.9]} 1... c5 {[%clk 0:03:00.1]} 2. Nf3 {[%clk 0:03:00.4]}
2... d6 {[%clk 0:03:00.5]} 3. d4 {[%clk 0:03:00.9]} 3... cxd4 {[%clk 0:03:01.4]}
4. Nxd4 {[%clk 0:03:01.5]} 4... Nf6 {[%clk 0:03:02.3]} 5. Nc3 {[%clk 0:03:02.2]}
5... g6 {[%clk 0:03:03.1]} 6. Be3 {[%clk 0:03:01.6]} 6... Bg7 {[%clk 0:03:03.3]}
7. f3 {[%clk 0:03:02.3]} 7... O-O {[%clk 0:03:03.8]} 8. Qd2 {[%clk 0:03:02.9]}
8... Nc6 {[%clk 0:03:04.3]} 9. O-O-O {[%clk 0:03:03.6]} 9... Bd7 {[%clk
0:03:04.4]} 10. g4 {[%clk 0:03:02.9]} 10... Rc8 {[%clk 0:03:03.6]} 11. h4 {[%clk
0:03:01.8]} 11... h5 {[%clk 0:03:03.9]} 12. Nxc6 {[%clk 0:02:58.2]} 12... bxc6
{[%clk 0:02:59.6]} 13. Bh6 {[%clk 0:02:58.2]} 13... Rb8 {[%clk 0:02:54.1]} 14.
Bxg7 {[%clk 0:02:51.5]} 14... Kxg7 {[%clk 0:02:53.5]} 15. e5 {[%clk 0:02:47.1]}
15... Nd5 {[%clk 0:01:40.7]} 16. Nxd5 {[%clk 0:02:42.3]} 16... cxd5 {[%clk
0:01:38.5]} 17. gxh5 {[%clk 0:02:40.6]} 17... Qb6 {[%clk 0:01:27.2]} 18. c3
{[%clk 0:02:35]} 18... d4 {[%clk 0:01:26.9]} 19. c4 {[%clk 0:02:23.2]} 19...
dxe5 {[%clk 0:01:24.1]} 20. hxg6 {[%clk 0:02:17]} 20... fxg6 {[%clk 0:01:19.7]}
21. h5 {[%clk 0:02:15.5]} 21... Rxf3 {[%clk 0:01:15.8]} 22. hxg6 {[%clk
0:01:56.5]} 22... Rc3+ {[%clk 0:01:12.7]} 23. Kb1 {[%clk 0:01:56.5]} 23... Qxg6+
{[%clk 0:01:13]} 24. Ka1 {[%clk 0:01:50.2]} 24... Rc2 {[%clk 0:01:13]} 25. Qe1
{[%clk 0:01:44.8]} 25... Rbxb2 {[%clk 0:00:59.7]} 26. Qxe5+ {[%clk 0:01:43.2]}
26... Kf7 {[%clk 0:00:50.7]} 27. Qf4+ {[%clk 0:01:34]} 27... Bf5 {[%clk
0:00:50.5]} 28. Bd3 {[%clk 0:01:20.5]} 28... Rxa2+ {[%clk 0:00:50.3]} 29. Kb1
{[%clk 0:01:20.7]} 29... Qb6# {[%clk 0:00:50.8]} 0-1

[Event "Early-Titled-Tuesday-Blitz-March-19-2024"]
[Site "Chess.com"]
[Date "2024.03.19"]
[Round "8"]
[White "Statham_01"]
[Black "IngOscarArdila"]
[Result "1-0"]
[WhiteElo "2587"]
[BlackElo "2408"]
[TimeControl "180+1"]
[EndTime "9:26:59 PDT"]
[Termination "Statham_01 won on time"]

1. e4 {[%clk 0:03:00.9]} 1... e5 {[%clk 0:02:54.8]} 2. Nf3 {[%clk 0:03:00.9]}
2... Nf6 {[%clk 0:02:53.2]} 3. Bc4 {[%clk 0:03:00.4]} 3... Nxe4 {[%clk
0:02:52.4]} 4. Nc3 {[%clk 0:02:54.7]} 4... Nf6 {[%clk 0:02:52]} 5. Nxe5 {[%clk
0:02:53.2]} 5... d5 {[%clk 0:02:51.9]} 6. Bb3 {[%clk 0:02:53.9]} 6... Bd6 {[%clk
0:02:50.7]} 7. d4 {[%clk 0:02:54.2]} 7... c6 {[%clk 0:02:50.5]} 8. O-O {[%clk
0:02:54.3]} 8... Nbd7 {[%clk 0:02:47.1]} 9. Bg5 {[%clk 0:02:53.8]} 9... O-O
{[%clk 0:02:41.8]} 10. f4 {[%clk 0:02:53.5]} 10... h6 {[%clk 0:02:41]} 11. Bh4
{[%clk 0:02:53.7]} 11... a5 {[%clk 0:02:36.1]} 12. a4 {[%clk 0:02:53]} 12... Re8
{[%clk 0:02:27.1]} 13. Ne2 {[%clk 0:02:53.1]} 13... Nf8 {[%clk 0:01:59.6]} 14.
c4 {[%clk 0:02:51.8]} 14... dxc4 {[%clk 0:01:53]} 15. Bxc4 {[%clk 0:02:52.7]}
15... Be6 {[%clk 0:01:53.5]} 16. Bd3 {[%clk 0:02:48]} 16... Bd5 {[%clk
0:01:43.6]} 17. Ng3 {[%clk 0:02:45.1]} 17... Qb6 {[%clk 0:01:29.5]} 18. Kh1
{[%clk 0:02:44]} 18... Qxb2 {[%clk 0:01:14.8]} 19. Bc2 {[%clk 0:02:44.1]} 19...
N8d7 {[%clk 0:00:46]} 20. Nf5 {[%clk 0:02:42]} 20... Bf8 {[%clk 0:00:39.8]} 21.
Rb1 {[%clk 0:02:38.5]} 21... Qa2 {[%clk 0:00:38]} 22. Nxd7 {[%clk 0:02:35.3]}
22... Nxd7 {[%clk 0:00:33]} 23. Nxh6+ {[%clk 0:02:35.7]} 23... gxh6 {[%clk
0:00:20.4]} 24. Qg4+ {[%clk 0:02:35.3]} 24... Bg7 {[%clk 0:00:20]} 25. Rbc1
{[%clk 0:02:18.4]} 25... Nf8 {[%clk 0:00:11.3]} 26. f5 {[%clk 0:02:11]} 26... f6
{[%clk 0:00:08.7]} 27. Bxf6 {[%clk 0:02:11.1]} 27... Re7 {[%clk 0:00:03.3]} 28.
Bxe7 {[%clk 0:02:11.5]} 28... Nh7 {[%clk 0:00:03]} 29. f6 {[%clk 0:02:11.4]}
29... Nxf6 {[%clk 0:00:01.9]} 30. Bxf6 {[%clk 0:02:11.7]} 1-0

[Event "Early-Titled-Tuesday-Blitz-March-19-2024"]
[Site "Chess.com"]
[Date "2024.03.19"]
[Round "8"]
[White "Cambek64"]
[Black "bennyficial"]
[Result "1-0"]
[WhiteElo "2492"]
[BlackElo "2113"]
[TimeControl "180+1"]
[EndTime "9:27:01 PDT"]
[Termination "Cambek64 won by resignation"]

1. e4 {[%clk 0:02:44.3]} 1... c5 {[%clk 0:02:57.7]} 2. Nc3 {[%clk 0:02:37.5]}
2... Nc6 {[%clk 0:02:55.7]} 3. d3 {[%clk 0:02:37.5]} 3... g6 {[%clk 0:02:55.5]}
4. Be3 {[%clk 0:02:38]} 4... d6 {[%clk 0:02:54.7]} 5. d4 {[%clk 0:02:38.5]} 5...
cxd4 {[%clk 0:02:53.6]} 6. Bxd4 {[%clk 0:02:39.4]} 6... Nxd4 {[%clk 0:02:53.8]}
7. Qxd4 {[%clk 0:02:40]} 7... Nf6 {[%clk 0:02:54]} 8. e5 {[%clk 0:02:40.5]} 8...
dxe5 {[%clk 0:02:51.5]} 9. Bb5+ {[%clk 0:02:40.9]} 9... Bd7 {[%clk 0:02:51.1]}
10. Qxe5 {[%clk 0:02:40.5]} 10... Bg7 {[%clk 0:02:10.5]} 11. O-O-O {[%clk
0:02:37.7]} 11... O-O {[%clk 0:01:15.8]} 12. Bxd7 {[%clk 0:02:36.7]} 12... Nxd7
{[%clk 0:01:13.5]} 13. Qb5 {[%clk 0:02:36.8]} 13... Bxc3 {[%clk 0:00:34]} 14.
bxc3 {[%clk 0:02:35.6]} 14... Qc7 {[%clk 0:00:32.9]} 15. Qxd7 {[%clk 0:02:34.9]}
15... Qxc3 {[%clk 0:00:33.2]} 16. Qd4 {[%clk 0:02:35.4]} 16... Qc6 {[%clk
0:00:29.1]} 17. Nf3 {[%clk 0:02:32.2]} 17... Rac8 {[%clk 0:00:29.2]} 18. Rd2
{[%clk 0:02:32.3]} 18... Qa6 {[%clk 0:00:21.2]} 19. Qb2 {[%clk 0:02:28.5]} 19...
Rc6 {[%clk 0:00:19.6]} 20. Nd4 {[%clk 0:02:27.8]} 20... Rb6 {[%clk 0:00:19.6]}
21. Nb3 {[%clk 0:02:28.3]} 21... Qb5 {[%clk 0:00:18]} 22. Rhd1 {[%clk
0:02:24.9]} 22... a5 {[%clk 0:00:18]} 23. Rd5 {[%clk 0:02:25.5]} 23... Qc4
{[%clk 0:00:14.9]} 24. Rxa5 {[%clk 0:02:24.4]} 24... Rc8 {[%clk 0:00:14.1]} 25.
Rad5 {[%clk 0:02:16.3]} 25... e6 {[%clk 0:00:10.9]} 26. R5d4 {[%clk 0:02:13.3]}
26... Qc7 {[%clk 0:00:09.1]} 27. g3 {[%clk 0:02:10.9]} 27... e5 {[%clk
0:00:08.8]} 28. Rd7 {[%clk 0:02:09.1]} 28... Qc6 {[%clk 0:00:06.2]} 29. Rd8+
{[%clk 0:02:05.2]} 1-0

[Event "Early-Titled-Tuesday-Blitz-March-19-2024"]
[Site "Chess.com"]
[Date "2024.03.19"]
[Round "8"]
[White "xakevicius91"]
[Black "microbear"]
[Result "1/2-1/2"]
[WhiteElo "2537"]
[BlackElo "2353"]
[TimeControl "180+1"]
[EndTime "9:27:12 PDT"]
[Termination "Game drawn by repetition"]

1. e4 {[%clk 0:03:00.9]} 1... c5 {[%clk 0:02:58.2]} 2. Nf3 {[%clk 0:02:59.2]}
2... d6 {[%clk 0:02:48.8]} 3. d4 {[%clk 0:02:59.3]} 3... Nf6 {[%clk 0:02:48.6]}
4. Nc3 {[%clk 0:02:59.2]} 4... cxd4 {[%clk 0:02:48.8]} 5. Nxd4 {[%clk
0:03:00.1]} 5... Nc6 {[%clk 0:02:49.4]} 6. f3 {[%clk 0:02:59.8]} 6... e5 {[%clk
0:02:49.5]} 7. Nb3 {[%clk 0:02:59.8]} 7... Be7 {[%clk 0:02:49.7]} 8. Be3 {[%clk
0:02:59.6]} 8... O-O {[%clk 0:02:49.9]} 9. Qd2 {[%clk 0:02:58.7]} 9... a5 {[%clk
0:02:50.5]} 10. Bb5 {[%clk 0:02:56.1]} 10... Na7 {[%clk 0:02:49.4]} 11. Be2
{[%clk 0:02:54.3]} 11... Be6 {[%clk 0:02:49.4]} 12. Rd1 {[%clk 0:02:53.8]} 12...
Nc8 {[%clk 0:02:48]} 13. O-O {[%clk 0:02:48.3]} 13... a4 {[%clk 0:02:46.4]} 14.
Nc1 {[%clk 0:02:48.2]} 14... Nb6 {[%clk 0:02:45.8]} 15. Kh1 {[%clk 0:02:46]}
15... Nc4 {[%clk 0:02:44.1]} 16. Bxc4 {[%clk 0:02:44.2]} 16... Bxc4 {[%clk
0:02:45]} 17. a3 {[%clk 0:02:43.3]} 17... Bxf1 {[%clk 0:02:44.2]} 18. Rxf1
{[%clk 0:02:42.1]} 18... Qc7 {[%clk 0:02:40.1]} 19. Nd3 {[%clk 0:02:41.9]} 19...
Rfd8 {[%clk 0:02:37.4]} 20. Nb4 {[%clk 0:02:41.8]} 20... Qc4 {[%clk 0:02:34.3]}
21. Rd1 {[%clk 0:02:41.5]} 21... d5 {[%clk 0:02:33.4]} 22. Nbxd5 {[%clk
0:02:39]} 22... Nxd5 {[%clk 0:02:33.2]} 23. Nxd5 {[%clk 0:02:39.6]} 23... Bc5
{[%clk 0:02:27]} 24. Bxc5 {[%clk 0:02:08.4]} 24... Qxc5 {[%clk 0:02:27.9]} 25.
Qg5 {[%clk 0:02:07.1]} 25... Qxc2 {[%clk 0:01:58.4]} 26. Ne7+ {[%clk 0:02:05.5]}
26... Kh8 {[%clk 0:01:47.1]} 27. Ng6+ {[%clk 0:01:56]} 27... hxg6 {[%clk
0:01:45.6]} 28. Rxd8+ {[%clk 0:01:56.9]} 28... Rxd8 {[%clk 0:01:45.4]} 29. Qxd8+
{[%clk 0:01:50]} 29... Kh7 {[%clk 0:01:44.6]} 30. Qh4+ {[%clk 0:01:21.4]} 30...
Kg8 {[%clk 0:01:43.9]} 31. Qd8+ {[%clk 0:00:30.3]} 31... Kh7 {[%clk 0:01:43.8]}
32. Qh4+ {[%clk 0:00:19.4]} 32... Kg8 {[%clk 0:01:43.8]} 33. Qd8+ {[%clk
0:00:20.3]} 33... Kh7 {[%clk 0:01:44]} 1/2-1/2

[Event "Early-Titled-Tuesday-Blitz-March-19-2024"]
[Site "Chess.com"]
[Date "2024.03.19"]
[Round "8"]
[White "GoltsevDmitry2000"]
[Black "nabukatnezarr"]
[Result "1-0"]
[WhiteElo "2757"]
[BlackElo "2580"]
[TimeControl "180+1"]
[EndTime "9:27:17 PDT"]
[Termination "GoltsevDmitry2000 won on time"]

1. e4 {[%clk 0:02:44.9]} 1... e5 {[%clk 0:02:57.5]} 2. Nf3 {[%clk 0:02:45.1]}
2... Nc6 {[%clk 0:02:55.7]} 3. Bb5 {[%clk 0:02:45.3]} 3... f5 {[%clk 0:02:51]}
4. d4 {[%clk 0:02:44.8]} 4... fxe4 {[%clk 0:02:49.2]} 5. Bxc6 {[%clk 0:02:44.9]}
5... bxc6 {[%clk 0:02:12.6]} 6. Nxe5 {[%clk 0:02:45.8]} 6... Nf6 {[%clk
0:02:09.8]} 7. O-O {[%clk 0:02:44.8]} 7... Be7 {[%clk 0:01:58.2]} 8. Nc3 {[%clk
0:02:44.2]} 8... O-O {[%clk 0:01:58]} 9. Bg5 {[%clk 0:02:43.8]} 9... Bb7 {[%clk
0:01:53.1]} 10. Qe2 {[%clk 0:02:40.7]} 10... d6 {[%clk 0:01:49.9]} 11. Nxc6
{[%clk 0:02:38.2]} 11... Bxc6 {[%clk 0:01:11.2]} 12. Qc4+ {[%clk 0:02:38]} 12...
Nd5 {[%clk 0:00:51.8]} 13. Nxd5 {[%clk 0:02:30.7]} 13... Bxd5 {[%clk 0:00:47.2]}
14. Qxd5+ {[%clk 0:02:31.6]} 14... Kh8 {[%clk 0:00:46.7]} 15. Be3 {[%clk
0:02:30.3]} 15... Rb8 {[%clk 0:00:43.4]} 16. b3 {[%clk 0:02:28.2]} 16... Bf6
{[%clk 0:00:39]} 17. Qxe4 {[%clk 0:02:27.7]} 17... c5 {[%clk 0:00:39.9]} 18.
Rad1 {[%clk 0:02:26.3]} 18... Re8 {[%clk 0:00:40.8]} 19. Qc6 {[%clk 0:02:24.5]}
19... Qa5 {[%clk 0:00:41.7]} 20. dxc5 {[%clk 0:02:23.9]} 20... dxc5 {[%clk
0:00:42.6]} 21. Qxc5 {[%clk 0:02:24.1]} 21... Qxa2 {[%clk 0:00:43.3]} 22. Rd2
{[%clk 0:02:14.3]} 22... a5 {[%clk 0:00:39.6]} 23. Rfd1 {[%clk 0:02:10.4]} 23...
Rbc8 {[%clk 0:00:34.6]} 24. Qf5 {[%clk 0:02:06.8]} 24... Rc7 {[%clk 0:00:15.6]}
25. g4 {[%clk 0:01:55]} 25... Rce7 {[%clk 0:00:13.2]} 26. g5 {[%clk 0:01:54]}
26... Bc3 {[%clk 0:00:11.4]} 27. Rd8 {[%clk 0:01:51]} 27... Qa3 {[%clk
0:00:07.4]} 28. Qf8+ {[%clk 0:01:48.6]} 1-0

[Event "Early-Titled-Tuesday-Blitz-March-19-2024"]
[Site "Chess.com"]
[Date "2024.03.19"]
[Round "8"]
[White "scarabee43"]
[Black "vugarrasulov"]
[Result "1-0"]
[WhiteElo "2842"]
[BlackElo "2965"]
[TimeControl "180+1"]
[EndTime "9:27:20 PDT"]
[Termination "scarabee43 won on time"]

1. d4 {[%clk 0:03:00.9]} 1... Nf6 {[%clk 0:02:59.6]} 2. c4 {[%clk 0:03:01]} 2...
e6 {[%clk 0:03:00.1]} 3. Nf3 {[%clk 0:03:01.4]} 3... c5 {[%clk 0:03:00.3]} 4. d5
{[%clk 0:02:59.4]} 4... exd5 {[%clk 0:03:01.2]} 5. cxd5 {[%clk 0:02:59.6]} 5...
d6 {[%clk 0:03:01.9]} 6. Nc3 {[%clk 0:02:58.6]} 6... g6 {[%clk 0:03:02]} 7. e4
{[%clk 0:02:57.4]} 7... a6 {[%clk 0:03:02.1]} 8. a4 {[%clk 0:02:57.1]} 8... Bg4
{[%clk 0:03:02.4]} 9. Be2 {[%clk 0:02:57.1]} 9... Bxf3 {[%clk 0:03:02.2]} 10.
Bxf3 {[%clk 0:02:57.6]} 10... Bg7 {[%clk 0:03:03]} 11. O-O {[%clk 0:02:57.5]}
11... O-O {[%clk 0:03:03.5]} 12. g3 {[%clk 0:02:55.8]} 12... Nbd7 {[%clk
0:03:03.5]} 13. Bg2 {[%clk 0:02:56.5]} 13... c4 {[%clk 0:02:59.7]} 14. Be3
{[%clk 0:02:54]} 14... Qa5 {[%clk 0:02:52.7]} 15. Qc2 {[%clk 0:02:45.8]} 15...
Nc5 {[%clk 0:02:49.1]} 16. Ne2 {[%clk 0:02:42.6]} 16... Rac8 {[%clk 0:02:45.9]}
17. Nd4 {[%clk 0:02:37.6]} 17... Rfe8 {[%clk 0:02:43.5]} 18. Bd2 {[%clk
0:02:29.1]} 18... Qb6 {[%clk 0:02:41.1]} 19. a5 {[%clk 0:02:29.4]} 19... Qa7
{[%clk 0:02:34.6]} 20. Be3 {[%clk 0:02:25.4]} 20... Ng4 {[%clk 0:02:23.9]} 21.
Qxc4 {[%clk 0:02:20.2]} 21... Nxe3 {[%clk 0:02:19.2]} 22. fxe3 {[%clk
0:02:20.4]} 22... Nxe4 {[%clk 0:02:19.7]} 23. Qb4 {[%clk 0:02:18.8]} 23... Qc5
{[%clk 0:02:14.2]} 24. Qxb7 {[%clk 0:02:18.5]} 24... Nf6 {[%clk 0:01:44.1]} 25.
Nc6 {[%clk 0:02:11]} 25... Qxe3+ {[%clk 0:01:39.3]} 26. Kh1 {[%clk 0:02:11.5]}
26... h5 {[%clk 0:01:32.6]} 27. Ra3 {[%clk 0:02:09.6]} 27... Qe2 {[%clk
0:01:29.4]} 28. Raf3 {[%clk 0:02:09.2]} 28... Ng4 {[%clk 0:00:26]} 29. Rxf7
{[%clk 0:01:53.9]} 29... Qxb2 {[%clk 0:00:17.8]} 30. Ne7+ {[%clk 0:01:51.2]}
30... Rxe7 {[%clk 0:00:11.5]} 31. Qxc8+ {[%clk 0:01:50.7]} 31... Kh7 {[%clk
0:00:11.7]} 32. Rxe7 {[%clk 0:01:50.5]} 1-0

[Event "Early-Titled-Tuesday-Blitz-March-19-2024"]
[Site "Chess.com"]
[Date "2024.03.19"]
[Round "8"]
[White "Alexchess1984"]
[Black "Kacparov"]
[Result "0-1"]
[WhiteElo "2762"]
[BlackElo "2918"]
[TimeControl "180+1"]
[EndTime "9:27:23 PDT"]
[Termination "Kacparov won by resignation"]

1. e4 {[%clk 0:03:00.9]} 1... c5 {[%clk 0:03:00.3]} 2. c3 {[%clk 0:03:00.2]}
2... d6 {[%clk 0:03:00.5]} 3. d4 {[%clk 0:02:58.7]} 3... Nf6 {[%clk 0:03:01.1]}
4. Bd3 {[%clk 0:02:58]} 4... Nc6 {[%clk 0:03:01.5]} 5. Ne2 {[%clk 0:02:56]} 5...
e5 {[%clk 0:03:01.6]} 6. O-O {[%clk 0:02:53.8]} 6... Be7 {[%clk 0:03:00.5]} 7.
dxe5 {[%clk 0:02:51.9]} 7... dxe5 {[%clk 0:03:00.1]} 8. h3 {[%clk 0:02:42.4]}
8... O-O {[%clk 0:02:59.9]} 9. Be3 {[%clk 0:02:42.4]} 9... Be6 {[%clk 0:02:59]}
10. Na3 {[%clk 0:02:40.2]} 10... Qc7 {[%clk 0:02:56]} 11. Ng3 {[%clk 0:02:37.5]}
11... Rfd8 {[%clk 0:02:52.2]} 12. Qe2 {[%clk 0:02:36.5]} 12... a6 {[%clk
0:02:49.5]} 13. Bc4 {[%clk 0:02:33]} 13... Bxc4 {[%clk 0:02:49.4]} 14. Nxc4
{[%clk 0:02:26.9]} 14... b5 {[%clk 0:02:50.3]} 15. Nd2 {[%clk 0:02:26.8]} 15...
c4 {[%clk 0:02:47.1]} 16. Nf5 {[%clk 0:02:26]} 16... Bf8 {[%clk 0:02:46.2]} 17.
Bg5 {[%clk 0:02:25.7]} 17... Be7 {[%clk 0:02:32.4]} 18. Nxe7+ {[%clk 0:01:59.9]}
18... Qxe7 {[%clk 0:02:31.8]} 19. Nf3 {[%clk 0:02:00.6]} 19... h6 {[%clk
0:02:29.2]} 20. Bd2 {[%clk 0:02:00]} 20... Qd7 {[%clk 0:02:26.9]} 21. Be3 {[%clk
0:01:44.3]} 21... Qd3 {[%clk 0:02:23.5]} 22. Qe1 {[%clk 0:01:40.2]} 22... Qxe4
{[%clk 0:02:21]} 23. Qc1 {[%clk 0:01:38.7]} 23... Qf5 {[%clk 0:02:12.8]} 24. Re1
{[%clk 0:01:35.9]} 24... Rd3 {[%clk 0:02:11]} 25. a4 {[%clk 0:01:33.5]} 25...
Rdd8 {[%clk 0:02:09.4]} 26. Bb6 {[%clk 0:01:28.5]} 26... Rdc8 {[%clk 0:02:07]}
27. axb5 {[%clk 0:01:15.5]} 27... axb5 {[%clk 0:02:07.9]} 28. Rxa8 {[%clk
0:01:12.1]} 28... Rxa8 {[%clk 0:02:08.8]} 29. Bc7 {[%clk 0:01:11.4]} 29... Re8
{[%clk 0:02:04.2]} 30. Qa1 {[%clk 0:01:03.5]} 30... Nd5 {[%clk 0:02:02]} 31. Bd6
{[%clk 0:00:59.3]} 31... Nf4 {[%clk 0:01:58.7]} 32. Re3 {[%clk 0:00:38.1]} 32...
Qg6 {[%clk 0:01:56.4]} 33. g3 {[%clk 0:00:24.3]} 33... Nxh3+ {[%clk 0:01:47.2]}
34. Kh2 {[%clk 0:00:23.5]} 34... Nxf2 {[%clk 0:01:46.8]} 35. Kg2 {[%clk
0:00:12.5]} 35... Ng4 {[%clk 0:01:45.8]} 0-1

[Event "Early-Titled-Tuesday-Blitz-March-19-2024"]
[Site "Chess.com"]
[Date "2024.03.19"]
[Round "8"]
[White "ViIIagra"]
[Black "jocmil"]
[Result "1-0"]
[WhiteElo "2933"]
[BlackElo "2768"]
[TimeControl "180+1"]
[EndTime "9:27:24 PDT"]
[Termination "ViIIagra won on time"]

1. d4 {[%clk 0:03:00.9]} 1... Nf6 {[%clk 0:02:59.8]} 2. Nd2 {[%clk 0:03:00.9]}
2... d5 {[%clk 0:02:59.3]} 3. e3 {[%clk 0:03:00.6]} 3... Bf5 {[%clk 0:02:58.3]}
4. Ngf3 {[%clk 0:03:00]} 4... e6 {[%clk 0:02:58.3]} 5. Be2 {[%clk 0:02:59.3]}
5... Bd6 {[%clk 0:02:45.3]} 6. Nh4 {[%clk 0:02:59.3]} 6... Be4 {[%clk
0:02:42.3]} 7. Nxe4 {[%clk 0:02:58.6]} 7... dxe4 {[%clk 0:02:42.2]} 8. f4 {[%clk
0:02:52.6]} 8... h6 {[%clk 0:02:09.1]} 9. g3 {[%clk 0:02:51.9]} 9... g5 {[%clk
0:02:08.6]} 10. Ng2 {[%clk 0:02:52.3]} 10... gxf4 {[%clk 0:02:08]} 11. exf4
{[%clk 0:02:47.8]} 11... h5 {[%clk 0:02:06.3]} 12. O-O {[%clk 0:02:46.1]} 12...
Nc6 {[%clk 0:02:00.6]} 13. c4 {[%clk 0:02:41.2]} 13... Bb4 {[%clk 0:01:29.3]}
14. Be3 {[%clk 0:02:37.5]} 14... Ng4 {[%clk 0:01:18.9]} 15. Bxg4 {[%clk
0:02:32.4]} 15... hxg4 {[%clk 0:01:19.8]} 16. c5 {[%clk 0:02:32.8]} 16... f5
{[%clk 0:00:50]} 17. a3 {[%clk 0:02:28]} 17... Ba5 {[%clk 0:00:49.4]} 18. Rb1
{[%clk 0:02:25]} 18... Qf6 {[%clk 0:00:37]} 19. b4 {[%clk 0:02:12.2]} 19... Bb6
{[%clk 0:00:12.4]} 20. d5 {[%clk 0:01:56.9]} 20... exd5 {[%clk 0:00:07.9]} 21.
Qxd5 {[%clk 0:01:57.8]} 21... Rd8 {[%clk 0:00:05.3]} 22. Qc4 {[%clk 0:01:57.8]}
22... Rd3 {[%clk 0:00:03.9]} 23. Rfd1 {[%clk 0:01:57.1]} 23... Qh6 {[%clk
0:00:03.1]} 24. Rxd3 {[%clk 0:01:53.6]} 24... Qxh2+ {[%clk 0:00:02.2]} 25. Kf2
{[%clk 0:01:53.4]} 25... exd3 {[%clk 0:00:01.8]} 26. Re1 {[%clk 0:01:34.6]} 1-0

[Event "Early-Titled-Tuesday-Blitz-March-19-2024"]
[Site "Chess.com"]
[Date "2024.03.19"]
[Round "8"]
[White "aistrel"]
[Black "vladoboch"]
[Result "1-0"]
[WhiteElo "2647"]
[BlackElo "2463"]
[TimeControl "180+1"]
[EndTime "9:27:25 PDT"]
[Termination "aistrel won by resignation"]

1. d4 {[%clk 0:03:00.9]} 1... Nf6 {[%clk 0:02:42.3]} 2. Nc3 {[%clk 0:02:59]}
2... d5 {[%clk 0:02:40.2]} 3. Bf4 {[%clk 0:02:59.1]} 3... g6 {[%clk 0:02:36.4]}
4. Qd2 {[%clk 0:02:58.9]} 4... Bg7 {[%clk 0:02:35.2]} 5. O-O-O {[%clk
0:02:59.5]} 5... c6 {[%clk 0:02:30.3]} 6. f3 {[%clk 0:02:57.6]} 6... b5 {[%clk
0:02:27.9]} 7. Bh6 {[%clk 0:02:54.5]} 7... O-O {[%clk 0:02:15.2]} 8. h4 {[%clk
0:02:52.8]} 8... b4 {[%clk 0:02:13.2]} 9. Nb1 {[%clk 0:02:53.4]} 9... Qa5 {[%clk
0:01:53.4]} 10. h5 {[%clk 0:02:52.7]} 10... Qxa2 {[%clk 0:01:47.6]} 11. hxg6
{[%clk 0:02:50.6]} 11... fxg6 {[%clk 0:01:47.9]} 12. Bxg7 {[%clk 0:02:51.2]}
12... Kxg7 {[%clk 0:01:48.8]} 13. Qh6+ {[%clk 0:02:50.1]} 13... Kg8 {[%clk
0:01:49.4]} 14. e4 {[%clk 0:02:47]} 14... dxe4 {[%clk 0:01:45]} 15. fxe4 {[%clk
0:02:33.9]} 15... Qf7 {[%clk 0:01:45.3]} 16. Nf3 {[%clk 0:02:28.4]} 16... Nxe4
{[%clk 0:01:39.6]} 17. Bc4 {[%clk 0:02:10.3]} 17... e6 {[%clk 0:01:39.6]} 18.
Nbd2 {[%clk 0:02:10.6]} 18... Nf2 {[%clk 0:01:11.6]} 19. Ng5 {[%clk 0:02:01.5]}
19... Qg7 {[%clk 0:01:11.1]} 20. Qxg7+ {[%clk 0:02:00.5]} 20... Kxg7 {[%clk
0:01:12]} 21. Rxh7+ {[%clk 0:02:00.6]} 21... Kg8 {[%clk 0:01:03.2]} 22. Re1
{[%clk 0:01:49]} 22... Rf5 {[%clk 0:00:53.8]} 23. Rc7 {[%clk 0:01:35.8]} 23...
Na6 {[%clk 0:00:40.6]} 24. Nxe6 {[%clk 0:01:14.8]} 24... Bxe6 {[%clk 0:00:29.4]}
25. Bxe6+ {[%clk 0:01:15.7]} 25... Kf8 {[%clk 0:00:29.6]} 26. Rxc6 {[%clk
0:01:14]} 26... Ra5 {[%clk 0:00:26.3]} 27. Nb3 {[%clk 0:01:10]} 1-0

[Event "Early-Titled-Tuesday-Blitz-March-19-2024"]
[Site "Chess.com"]
[Date "2024.03.19"]
[Round "8"]
[White "LeninGuerra"]
[Black "shirovin"]
[Result "1-0"]
[WhiteElo "2669"]
[BlackElo "2041"]
[TimeControl "180+1"]
[EndTime "9:27:28 PDT"]
[Termination "LeninGuerra won on time"]

1. e4 {[%clk 0:03:00.9]} 1... d6 {[%clk 0:02:55.5]} 2. d4 {[%clk 0:03:00.4]}
2... Nf6 {[%clk 0:02:50.6]} 3. Nd2 {[%clk 0:03:00.3]} 3... e5 {[%clk 0:02:50.5]}
4. Ngf3 {[%clk 0:02:59.6]} 4... Nbd7 {[%clk 0:02:48.5]} 5. dxe5 {[%clk
0:02:58.2]} 5... Nxe5 {[%clk 0:02:37.5]} 6. Nxe5 {[%clk 0:02:57.6]} 6... dxe5
{[%clk 0:02:36.7]} 7. Bc4 {[%clk 0:02:56]} 7... Bc5 {[%clk 0:02:34.2]} 8. c3
{[%clk 0:02:55.3]} 8... O-O {[%clk 0:02:31]} 9. O-O {[%clk 0:02:55.3]} 9... c6
{[%clk 0:02:29.8]} 10. h3 {[%clk 0:02:54.9]} 10... b5 {[%clk 0:02:08.1]} 11. Bb3
{[%clk 0:02:51.6]} 11... a5 {[%clk 0:02:07.1]} 12. a4 {[%clk 0:02:49.1]} 12...
bxa4 {[%clk 0:02:05.5]} 13. Bxa4 {[%clk 0:02:47.9]} 13... Ba6 {[%clk 0:02:04.4]}
14. Re1 {[%clk 0:02:47.8]} 14... Rc8 {[%clk 0:01:57.4]} 15. Bc2 {[%clk
0:02:41.7]} 15... Qb6 {[%clk 0:01:48.5]} 16. Qf3 {[%clk 0:02:40.4]} 16... Rfd8
{[%clk 0:01:41.8]} 17. Nf1 {[%clk 0:02:40]} 17... Rd7 {[%clk 0:01:22.8]} 18. Ng3
{[%clk 0:02:39.7]} 18... Rcd8 {[%clk 0:01:02.5]} 19. Nf5 {[%clk 0:02:39.4]}
19... Bd3 {[%clk 0:00:55.9]} 20. Bg5 {[%clk 0:01:42]} 20... Bxf2+ {[%clk
0:00:29]} 21. Kh2 {[%clk 0:01:37.6]} 21... Bxe1 {[%clk 0:00:25.3]} 22. Rxe1
{[%clk 0:01:35.3]} 22... Bxc2 {[%clk 0:00:20.1]} 23. Bxf6 {[%clk 0:01:35.4]}
23... Rd3 {[%clk 0:00:18.5]} 24. Qg4 {[%clk 0:01:35.6]} 24... g6 {[%clk
0:00:16.3]} 25. Qg5 {[%clk 0:01:28.8]} 25... Rd1 {[%clk 0:00:13.8]} 26. Qh6
{[%clk 0:01:26.9]} 1-0